[Event "*** Titled Tuesday Blitz"]
[Site "Chess.com"]
[Date "2020.05.19"]
[Round "7"]
[White "TregubovP"]
[Black "grunbergmihai"]
[Result "1-0"]
[WhiteElo "2566"]
[BlackElo "2414"]
[TimeControl "180+1"]
[EndTime "13:20:52 PDT"]
[Termination "TregubovP won by resignation"]

1. e4 {[%clk 0:03:00.9]} 1... Nf6 {[%clk 0:03:00.1]} 2. e5 {[%clk 0:02:58.8]}
2... Nd5 {[%clk 0:03:00]} 3. d4 {[%clk 0:02:59.4]} 3... d6 {[%clk 0:03:00]} 4.
Nf3 {[%clk 0:02:59.6]} 4... dxe5 {[%clk 0:02:59.9]} 5. Nxe5 {[%clk 0:02:58.6]}
5... c6 {[%clk 0:03:00.4]} 6. Bc4 {[%clk 0:02:46.5]} 6... Nd7 {[%clk 0:02:51.9]}
7. Nf3 {[%clk 0:02:41]} 7... N7b6 {[%clk 0:02:48.3]} 8. Bb3 {[%clk 0:02:35.3]}
8... a5 {[%clk 0:02:48]} 9. a3 {[%clk 0:02:33.6]} 9... a4 {[%clk 0:02:45.5]} 10.
Ba2 {[%clk 0:02:33.8]} 10... Bg4 {[%clk 0:02:44.9]} 11. h3 {[%clk 0:02:33.5]}
11... Bh5 {[%clk 0:02:44.2]} 12. g4 {[%clk 0:02:15.9]} 12... Bg6 {[%clk
0:02:43.9]} 13. c4 {[%clk 0:02:15.5]} 13... Nf6 {[%clk 0:02:39.6]} 14. Nc3
{[%clk 0:02:14.7]} 14... e6 {[%clk 0:02:29.7]} 15. Ne5 {[%clk 0:02:08.9]} 15...
c5 {[%clk 0:02:18.6]} 16. Be3 {[%clk 0:02:06.6]} 16... cxd4 {[%clk 0:01:53.2]}
17. Qxd4 {[%clk 0:02:05.2]} 17... Qxd4 {[%clk 0:01:50.2]} 18. Bxd4 {[%clk
0:02:05.2]} 18... Nbd7 {[%clk 0:01:44.2]} 19. Nxg6 {[%clk 0:01:44.5]} 19... hxg6
{[%clk 0:01:43.7]} 20. g5 {[%clk 0:01:43.3]} 20... Nh5 {[%clk 0:01:39.6]} 21.
Bb1 {[%clk 0:01:36.5]} 21... Bc5 {[%clk 0:01:33.5]} 22. Nb5 {[%clk 0:01:19.7]}
22... Bxd4 {[%clk 0:01:30]} 23. Nxd4 {[%clk 0:01:19.9]} 23... Nc5 {[%clk
0:01:26.2]} 24. Bc2 {[%clk 0:01:19.1]} 24... Nf4 {[%clk 0:01:18.9]} 25. h4
{[%clk 0:01:17.5]} 25... Rxh4 {[%clk 0:01:16.9]} 26. Rxh4 {[%clk 0:01:16.8]}
26... Ng2+ {[%clk 0:01:16.9]} 27. Ke2 {[%clk 0:01:11.6]} 27... Nxh4 {[%clk
0:01:17.8]} 28. Rh1 {[%clk 0:01:11.4]} 28... O-O-O {[%clk 0:01:15.1]} 29. Rxh4
{[%clk 0:01:10.8]} 29... e5 {[%clk 0:01:13.7]} 30. b4 {[%clk 0:01:00.6]} 30...
axb3 {[%clk 0:01:09.4]} 31. Nxb3 {[%clk 0:01:00.8]} 31... Ne6 {[%clk 0:01:09.3]}
32. Re4 {[%clk 0:00:57.3]} 32... Re8 {[%clk 0:01:00.9]} 33. Ke3 {[%clk
0:00:56.3]} 33... Nxg5 {[%clk 0:01:00.3]} 34. Rg4 {[%clk 0:00:55.4]} 34... Ne6
{[%clk 0:00:57.4]} 35. Rh4 {[%clk 0:00:53.1]} 35... Nf4 {[%clk 0:00:56.6]} 36.
Rh7 {[%clk 0:00:51.5]} 36... Nh5 {[%clk 0:00:56.1]} 37. Bd1 {[%clk 0:00:47.2]}
37... Nf4 {[%clk 0:00:50.3]} 38. Rxg7 {[%clk 0:00:45.4]} 38... Re7 {[%clk
0:00:50.4]} 39. Bf3 {[%clk 0:00:43.7]} 39... Kc7 {[%clk 0:00:49.9]} 40. Bd5
{[%clk 0:00:43]} 40... Nxd5+ {[%clk 0:00:47.2]} 41. cxd5 {[%clk 0:00:43.1]}
41... Kd6 {[%clk 0:00:48.1]} 42. Rg8 {[%clk 0:00:37.4]} 42... Kxd5 {[%clk
0:00:47.7]} 43. Rd8+ {[%clk 0:00:37.9]} 43... Kc4 {[%clk 0:00:47.4]} 44. Nd2+
{[%clk 0:00:36.1]} 44... Kc3 {[%clk 0:00:45.1]} 45. Ne4+ {[%clk 0:00:31.4]}
45... Kb2 {[%clk 0:00:43.2]} 46. a4 {[%clk 0:00:31.6]} 46... Kb3 {[%clk
0:00:41.3]} 47. a5 {[%clk 0:00:30.5]} 47... Kb4 {[%clk 0:00:40.5]} 48. Rd5
{[%clk 0:00:28.7]} 48... f5 {[%clk 0:00:37.9]} 49. Nf6 {[%clk 0:00:23.1]} 49...
Rc7 {[%clk 0:00:34.3]} 50. Rxe5 {[%clk 0:00:20.5]} 50... Rc3+ {[%clk 0:00:33.9]}
51. Kf4 {[%clk 0:00:20]} 51... Rc2 {[%clk 0:00:33.3]} 52. f3 {[%clk 0:00:19.9]}
52... Rc4+ {[%clk 0:00:32.9]} 53. Kg5 {[%clk 0:00:19.8]} 53... Rc3 {[%clk
0:00:32.8]} 54. f4 {[%clk 0:00:20.2]} 54... Rg3+ {[%clk 0:00:32.3]} 55. Kh6
{[%clk 0:00:20.6]} 55... Rf3 {[%clk 0:00:31.9]} 56. Kxg6 {[%clk 0:00:20.4]}
56... Ka4 {[%clk 0:00:31.4]} 57. Kxf5 {[%clk 0:00:20.5]} 1-0

[Event "*** Titled Tuesday Blitz"]
[Site "Chess.com"]
[Date "2020.05.19"]
[Round "7"]
[White "TheBigBadChessDad"]
[Black "14Sokol88"]
[Result "0-1"]
[WhiteElo "2250"]
[BlackElo "2412"]
[TimeControl "180+1"]
[EndTime "13:20:52 PDT"]
[Termination "14Sokol88 won on time"]

1. d4 {[%clk 0:03:00.9]} 1... Nf6 {[%clk 0:02:57.1]} 2. Nf3 {[%clk 0:03:00.7]}
2... d6 {[%clk 0:02:57]} 3. Bg5 {[%clk 0:02:59.4]} 3... Ne4 {[%clk 0:02:53.8]}
4. Bf4 {[%clk 0:02:58]} 4... Bf5 {[%clk 0:02:49.9]} 5. Nbd2 {[%clk 0:02:55.5]}
5... g6 {[%clk 0:02:42.9]} 6. e3 {[%clk 0:02:51.9]} 6... Bg7 {[%clk 0:02:38.3]}
7. Nxe4 {[%clk 0:02:51.3]} 7... Bxe4 {[%clk 0:02:39.2]} 8. Bd3 {[%clk
0:02:51.4]} 8... Bxd3 {[%clk 0:02:37.5]} 9. Qxd3 {[%clk 0:02:50.5]} 9... O-O
{[%clk 0:02:36.5]} 10. O-O {[%clk 0:02:44.3]} 10... Nd7 {[%clk 0:02:34.1]} 11.
c3 {[%clk 0:02:35.1]} 11... Re8 {[%clk 0:02:30.3]} 12. e4 {[%clk 0:02:32.8]}
12... e5 {[%clk 0:02:28.6]} 13. dxe5 {[%clk 0:02:32.4]} 13... Nxe5 {[%clk
0:02:27.6]} 14. Bxe5 {[%clk 0:02:30.9]} 14... Bxe5 {[%clk 0:02:27.8]} 15. Nxe5
{[%clk 0:02:26.3]} 15... Rxe5 {[%clk 0:02:26.1]} 16. Rad1 {[%clk 0:02:21.5]}
16... Qh4 {[%clk 0:02:21.8]} 17. f4 {[%clk 0:02:11.7]} 17... Re6 {[%clk
0:02:18.8]} 18. g3 {[%clk 0:02:10.1]} 18... Qe7 {[%clk 0:02:14.9]} 19. f5 {[%clk
0:01:56.8]} 19... Rxe4 {[%clk 0:02:13.4]} 20. f6 {[%clk 0:01:56.2]} 20... Qe5
{[%clk 0:02:08.9]} 21. Qd2 {[%clk 0:01:37]} 21... Kh8 {[%clk 0:02:06.2]} 22. Qh6
{[%clk 0:01:31.7]} 22... Rg8 {[%clk 0:02:05]} 23. Rd2 {[%clk 0:01:24.2]} 23...
Qh5 {[%clk 0:01:49.4]} 24. Qxh5 {[%clk 0:01:12.6]} 24... gxh5 {[%clk 0:01:50.3]}
25. Kg2 {[%clk 0:00:58.6]} 25... h4 {[%clk 0:01:45.5]} 26. Rf3 {[%clk 0:00:52]}
26... h6 {[%clk 0:01:34.8]} 27. Rd4 {[%clk 0:00:43.3]} 27... Rxd4 {[%clk
0:01:31.6]} 28. cxd4 {[%clk 0:00:43.9]} 28... hxg3 {[%clk 0:01:30.8]} 29. hxg3
{[%clk 0:00:42.8]} 29... Re8 {[%clk 0:01:30.2]} 30. Rb3 {[%clk 0:00:32.1]} 30...
b6 {[%clk 0:01:27.3]} 31. d5 {[%clk 0:00:30.2]} 31... Kh7 {[%clk 0:01:18.2]} 32.
Rc3 {[%clk 0:00:29.3]} 32... Rc8 {[%clk 0:01:18.3]} 33. Rf3 {[%clk 0:00:25.1]}
33... Kg6 {[%clk 0:01:18.3]} 34. Kh3 {[%clk 0:00:22.3]} 34... c5 {[%clk
0:01:14.2]} 35. dxc6 {[%clk 0:00:21.5]} 35... Rxc6 {[%clk 0:01:15.1]} 36. b4
{[%clk 0:00:20.3]} 36... d5 {[%clk 0:01:12.7]} 37. Rd3 {[%clk 0:00:17.3]} 37...
Rd6 {[%clk 0:01:12]} 38. Kg4 {[%clk 0:00:15.9]} 38... Kxf6 {[%clk 0:01:09.9]}
39. Ra3 {[%clk 0:00:13.8]} 39... Rd7 {[%clk 0:01:07.6]} 40. Kh5 {[%clk
0:00:13.5]} 40... Kg7 {[%clk 0:01:04.1]} 41. g4 {[%clk 0:00:09]} 41... d4 {[%clk
0:01:02.8]} 42. Rd3 {[%clk 0:00:09.6]} 42... Rd5+ {[%clk 0:01:02.5]} 43. Kh4
{[%clk 0:00:08.9]} 43... Kg6 {[%clk 0:01:02.3]} 44. a4 {[%clk 0:00:09.3]} 44...
a6 {[%clk 0:00:56.4]} 45. Kg3 {[%clk 0:00:05.6]} 45... Kg5 {[%clk 0:00:44.4]}
46. Kf3 {[%clk 0:00:05.9]} 46... f5 {[%clk 0:00:44]} 47. gxf5 {[%clk 0:00:05.4]}
47... Kxf5 {[%clk 0:00:44.4]} 48. Rd1 {[%clk 0:00:05.5]} 48... d3 {[%clk
0:00:43.2]} 49. b5 {[%clk 0:00:05.7]} 49... axb5 {[%clk 0:00:39.7]} 50. axb5
{[%clk 0:00:05.7]} 50... d2 {[%clk 0:00:39.5]} 51. Ke3 {[%clk 0:00:05.8]} 51...
Ke5 {[%clk 0:00:37.3]} 52. Rh1 {[%clk 0:00:04.5]} 52... d1=Q {[%clk 0:00:35.7]}
53. Rxd1 {[%clk 0:00:04.4]} 53... Rxd1 {[%clk 0:00:34.6]} 0-1

[Event "*** Titled Tuesday Blitz"]
[Site "Chess.com"]
[Date "2020.05.19"]
[Round "7"]
[White "GMKrikor"]
[Black "NikolaGry"]
[Result "0-1"]
[WhiteElo "2749"]
[BlackElo "2641"]
[TimeControl "180+1"]
[EndTime "13:20:53 PDT"]
[Termination "NikolaGry won by resignation"]

1. Nf3 {[%clk 0:02:57.3]} 1... c5 {[%clk 0:02:58.2]} 2. c4 {[%clk 0:02:52.1]}
2... b6 {[%clk 0:02:58.1]} 3. Nc3 {[%clk 0:02:45.8]} 3... Bb7 {[%clk 0:02:55.4]}
4. d4 {[%clk 0:02:38.9]} 4... cxd4 {[%clk 0:02:54.3]} 5. Nxd4 {[%clk 0:02:38.6]}
5... Nf6 {[%clk 0:02:54.4]} 6. f3 {[%clk 0:02:37.3]} 6... d6 {[%clk 0:02:54.3]}
7. e4 {[%clk 0:02:36.7]} 7... e6 {[%clk 0:02:54.5]} 8. Be3 {[%clk 0:02:34.7]}
8... Nbd7 {[%clk 0:02:53]} 9. Qd2 {[%clk 0:02:34]} 9... a6 {[%clk 0:02:51.8]}
10. Be2 {[%clk 0:02:33.1]} 10... Be7 {[%clk 0:02:47.5]} 11. O-O {[%clk
0:02:33.2]} 11... O-O {[%clk 0:02:47.3]} 12. a4 {[%clk 0:02:21.9]} 12... Rc8
{[%clk 0:02:47.1]} 13. a5 {[%clk 0:02:20.3]} 13... Ne5 {[%clk 0:02:46]} 14. axb6
{[%clk 0:01:51.8]} 14... Nxc4 {[%clk 0:02:45.3]} 15. Bxc4 {[%clk 0:01:49.8]}
15... Rxc4 {[%clk 0:02:44.6]} 16. Nb3 {[%clk 0:01:50.5]} 16... Rb4 {[%clk
0:02:44.5]} 17. Na5 {[%clk 0:01:47.9]} 17... Ba8 {[%clk 0:02:43.7]} 18. Nd5
{[%clk 0:00:58.5]} 18... Nxd5 {[%clk 0:01:48.6]} 19. exd5 {[%clk 0:00:58.2]}
19... Rxb6 {[%clk 0:01:41.2]} 20. dxe6 {[%clk 0:00:57.2]} 20... fxe6 {[%clk
0:00:47.4]} 21. Bxb6 {[%clk 0:00:56.6]} 21... Qxb6+ {[%clk 0:00:47.4]} 22. Kh1
{[%clk 0:00:57.2]} 22... d5 {[%clk 0:00:46]} 23. Qe2 {[%clk 0:00:50.4]} 23...
Bf6 {[%clk 0:00:37.5]} 24. Ra2 {[%clk 0:00:44.6]} 24... e5 {[%clk 0:00:35.3]}
25. Rc1 {[%clk 0:00:32.1]} 25... Rb8 {[%clk 0:00:25.8]} 26. h3 {[%clk
0:00:27.9]} 26... h5 {[%clk 0:00:24.7]} 27. b3 {[%clk 0:00:19.5]} 27... Bg5
{[%clk 0:00:16.9]} 28. Rd1 {[%clk 0:00:16.1]} 28... Bf4 {[%clk 0:00:16.7]} 29.
Ra4 {[%clk 0:00:10.7]} 29... Qg6 {[%clk 0:00:15.1]} 30. Qf2 {[%clk 0:00:08.9]}
30... Rf8 {[%clk 0:00:14.2]} 31. b4 {[%clk 0:00:07.9]} 31... e4 {[%clk
0:00:14.2]} 32. fxe4 {[%clk 0:00:07.8]} 32... dxe4 {[%clk 0:00:14.3]} 33. Rf1
{[%clk 0:00:07.9]} 33... e3 {[%clk 0:00:14.2]} 34. Qa2+ {[%clk 0:00:05.6]} 34...
Kh8 {[%clk 0:00:10.6]} 35. b5 {[%clk 0:00:06.2]} 35... Qg3 {[%clk 0:00:08.2]}
36. Raxf4 {[%clk 0:00:05.3]} 36... Rxf4 {[%clk 0:00:06.9]} 37. Rxf4 {[%clk
0:00:05.5]} 37... Qxf4 {[%clk 0:00:07.1]} 38. b6 {[%clk 0:00:04.4]} 38... Qf1+
{[%clk 0:00:06.2]} 39. Kh2 {[%clk 0:00:04.7]} 39... e2 {[%clk 0:00:06.4]} 40.
Qd2 {[%clk 0:00:02.6]} 40... e1=Q {[%clk 0:00:05.6]} 41. Qd8+ {[%clk 0:00:03.5]}
41... Kh7 {[%clk 0:00:05.5]} 42. Qd3+ {[%clk 0:00:04.1]} 42... Qxd3 {[%clk
0:00:05.1]} 0-1

[Event "*** Titled Tuesday Blitz"]
[Site "Chess.com"]
[Date "2020.05.19"]
[Round "7"]
[White "ehrenfeld"]
[Black "Escanor89"]
[Result "1-0"]
[WhiteElo "2452"]
[BlackElo "2565"]
[TimeControl "180+1"]
[EndTime "13:20:53 PDT"]
[Termination "ehrenfeld won by checkmate"]

1. e4 {[%clk 0:03:00.9]} 1... c5 {[%clk 0:02:59.9]} 2. d3 {[%clk 0:03:00.7]}
2... Nc6 {[%clk 0:02:59.5]} 3. f4 {[%clk 0:03:01.2]} 3... g6 {[%clk 0:02:59.5]}
4. Nf3 {[%clk 0:03:01.7]} 4... Bg7 {[%clk 0:02:59.7]} 5. Be2 {[%clk 0:03:02.3]}
5... e6 {[%clk 0:02:58.2]} 6. O-O {[%clk 0:03:02.8]} 6... Nge7 {[%clk
0:02:58.7]} 7. c3 {[%clk 0:03:02.9]} 7... O-O {[%clk 0:02:57.7]} 8. Be3 {[%clk
0:03:03.2]} 8... b6 {[%clk 0:02:56.5]} 9. d4 {[%clk 0:03:03.5]} 9... cxd4 {[%clk
0:02:53.4]} 10. Nxd4 {[%clk 0:03:03.3]} 10... d5 {[%clk 0:02:41.9]} 11. e5
{[%clk 0:03:02.7]} 11... Nxd4 {[%clk 0:02:36.5]} 12. cxd4 {[%clk 0:03:02.3]}
12... Bd7 {[%clk 0:02:27.8]} 13. Nc3 {[%clk 0:03:01.6]} 13... a6 {[%clk
0:02:16.8]} 14. Qd2 {[%clk 0:02:50.5]} 14... b5 {[%clk 0:02:16.6]} 15. Rac1
{[%clk 0:02:48.9]} 15... Qb6 {[%clk 0:02:01.6]} 16. Nd1 {[%clk 0:02:39.1]} 16...
Rfc8 {[%clk 0:01:57.2]} 17. Nf2 {[%clk 0:02:38.9]} 17... Nf5 {[%clk 0:01:53.6]}
18. Nd3 {[%clk 0:02:38.4]} 18... Nxd4 {[%clk 0:01:24.6]} 19. Rxc8+ {[%clk
0:02:32.1]} 19... Rxc8 {[%clk 0:01:23]} 20. Bd1 {[%clk 0:02:32.5]} 20... Bf8
{[%clk 0:01:08.8]} 21. Qf2 {[%clk 0:02:28]} 21... Qa5 {[%clk 0:00:36]} 22. Bxd4
{[%clk 0:02:25.1]} 22... Qxa2 {[%clk 0:00:36]} 23. Bc5 {[%clk 0:01:55.9]} 23...
a5 {[%clk 0:00:15.1]} 24. Bxf8 {[%clk 0:01:53.5]} 24... Kxf8 {[%clk 0:00:14.1]}
25. Qa7 {[%clk 0:01:32.3]} 25... Be8 {[%clk 0:00:13.6]} 26. Qf2 {[%clk
0:00:34.4]} 26... Qc4 {[%clk 0:00:11.1]} 27. Be2 {[%clk 0:00:31.5]} 27... Qb3
{[%clk 0:00:09.9]} 28. g4 {[%clk 0:00:25.6]} 28... b4 {[%clk 0:00:09.3]} 29. f5
{[%clk 0:00:25.2]} 29... exf5 {[%clk 0:00:07.4]} 30. gxf5 {[%clk 0:00:25.2]}
30... d4 {[%clk 0:00:06.8]} 31. fxg6 {[%clk 0:00:23.9]} 31... hxg6 {[%clk
0:00:06.7]} 32. Kh1 {[%clk 0:00:20]} 32... Qe6 {[%clk 0:00:06.6]} 33. Qf4 {[%clk
0:00:19.2]} 33... Bc6+ {[%clk 0:00:06.7]} 34. Bf3 {[%clk 0:00:19.6]} 34... Kg8
{[%clk 0:00:06.6]} 35. Bxc6 {[%clk 0:00:19.5]} 35... Qxc6+ {[%clk 0:00:06.5]}
36. Kg1 {[%clk 0:00:19.5]} 36... Qe6 {[%clk 0:00:07]} 37. Nf2 {[%clk 0:00:18.3]}
37... Rc2 {[%clk 0:00:07]} 38. Ne4 {[%clk 0:00:18]} 38... a4 {[%clk 0:00:04.7]}
39. Nf6+ {[%clk 0:00:17.9]} 39... Kg7 {[%clk 0:00:04.9]} 40. Qxd4 {[%clk
0:00:17.2]} 40... a3 {[%clk 0:00:03.9]} 41. bxa3 {[%clk 0:00:16.8]} 41... bxa3
{[%clk 0:00:04.3]} 42. Rf2 {[%clk 0:00:16.5]} 42... Rxf2 {[%clk 0:00:03.7]} 43.
Kxf2 {[%clk 0:00:16.2]} 43... a2 {[%clk 0:00:04.3]} 44. Ne4 {[%clk 0:00:13.6]}
44... Qa6 {[%clk 0:00:03.9]} 45. e6+ {[%clk 0:00:10.6]} 45... Kh6 {[%clk
0:00:03.9]} 46. Qh8# {[%clk 0:00:09.8]} 1-0

[Event "*** Titled Tuesday Blitz"]
[Site "Chess.com"]
[Date "2020.05.19"]
[Round "7"]
[White "Gentle_Emperor"]
[Black "turayev_shahruh17"]
[Result "0-1"]
[WhiteElo "2285"]
[BlackElo "2509"]
[TimeControl "180+1"]
[EndTime "13:20:53 PDT"]
[Termination "turayev_shahruh17 won by resignation"]

1. d4 {[%clk 0:03:00.9]} 1... g6 {[%clk 0:02:59.2]} 2. Bf4 {[%clk 0:03:00.7]}
2... Bg7 {[%clk 0:03:00.1]} 3. Nc3 {[%clk 0:03:00.7]} 3... c6 {[%clk 0:02:59.2]}
4. e4 {[%clk 0:03:00.9]} 4... d5 {[%clk 0:03:00.1]} 5. e5 {[%clk 0:03:00.9]}
5... Bf5 {[%clk 0:02:59.7]} 6. g4 {[%clk 0:02:56.2]} 6... Bc8 {[%clk 0:02:54.3]}
7. Be2 {[%clk 0:02:55.2]} 7... Nd7 {[%clk 0:02:53]} 8. Qd2 {[%clk 0:02:55.4]}
8... Nb6 {[%clk 0:02:52.5]} 9. b3 {[%clk 0:02:53.1]} 9... e6 {[%clk 0:02:44.4]}
10. h4 {[%clk 0:02:51.6]} 10... Ne7 {[%clk 0:02:42.7]} 11. h5 {[%clk 0:02:50.8]}
11... Nd7 {[%clk 0:02:40.7]} 12. Bh6 {[%clk 0:02:44.4]} 12... Bxh6 {[%clk
0:02:33.7]} 13. Qxh6 {[%clk 0:02:45.3]} 13... Qb6 {[%clk 0:02:32.9]} 14. Nf3
{[%clk 0:02:44.4]} 14... c5 {[%clk 0:02:27.3]} 15. Nb5 {[%clk 0:02:38.6]} 15...
Rf8 {[%clk 0:02:08.3]} 16. Nd6+ {[%clk 0:02:09]} 16... Kd8 {[%clk 0:02:08]} 17.
Qxh7 {[%clk 0:01:50.3]} 17... cxd4 {[%clk 0:02:07.2]} 18. Nxf7+ {[%clk
0:01:30.8]} 18... Kc7 {[%clk 0:02:06.6]} 19. Nd6 {[%clk 0:01:13]} 19... Nc6
{[%clk 0:02:05.2]} 20. Nb5+ {[%clk 0:01:07.3]} 20... Kb8 {[%clk 0:02:03.7]} 21.
hxg6 {[%clk 0:01:07.2]} 21... Rxf3 {[%clk 0:01:57]} 22. g7 {[%clk 0:00:43]}
22... Rxf2 {[%clk 0:01:21.7]} 23. Nd6 {[%clk 0:00:24.6]} 23... d3 {[%clk
0:00:44.4]} 24. Qxd3 {[%clk 0:00:13.7]} 24... Ncxe5 {[%clk 0:00:34.9]} 25. Qg3
{[%clk 0:00:14]} 25... Rf3 {[%clk 0:00:16.3]} 26. Qxf3 {[%clk 0:00:05.4]} 26...
Nxf3+ {[%clk 0:00:15.7]} 27. Bxf3 {[%clk 0:00:05.7]} 27... Qe3+ {[%clk
0:00:15.4]} 28. Be2 {[%clk 0:00:06.1]} 28... Qc3+ {[%clk 0:00:15.3]} 29. Kf2
{[%clk 0:00:06.6]} 29... Qxg7 {[%clk 0:00:15.4]} 30. Nxc8 {[%clk 0:00:05.8]}
30... Kxc8 {[%clk 0:00:14.7]} 31. Bf3 {[%clk 0:00:06.7]} 31... Kc7 {[%clk
0:00:14]} 32. Kg3 {[%clk 0:00:07.6]} 32... Rf8 {[%clk 0:00:14.1]} 33. Rhf1
{[%clk 0:00:08.5]} 33... Ne5 {[%clk 0:00:12.5]} 34. Bg2 {[%clk 0:00:08.6]} 34...
Qxg4+ {[%clk 0:00:11.2]} 35. Kh2 {[%clk 0:00:08.4]} 35... Rh8+ {[%clk 0:00:10]}
36. Kg1 {[%clk 0:00:09.3]} 36... Rg8 {[%clk 0:00:09.6]} 37. Rf2 {[%clk
0:00:09.1]} 37... Nf3+ {[%clk 0:00:09.5]} 38. Kf1 {[%clk 0:00:08.6]} 38... Nh4
{[%clk 0:00:09.8]} 39. Bh1 {[%clk 0:00:08.4]} 39... Qg1+ {[%clk 0:00:09.4]} 40.
Ke2 {[%clk 0:00:08.7]} 40... Qxa1 {[%clk 0:00:10.3]} 0-1

[Event "*** Titled Tuesday Blitz"]
[Site "Chess.com"]
[Date "2020.05.19"]
[Round "7"]
[White "Firouzja2003"]
[Black "Bigfish1995"]
[Result "0-1"]
[WhiteElo "3165"]
[BlackElo "3008"]
[TimeControl "180+1"]
[EndTime "13:20:54 PDT"]
[Termination "Bigfish1995 won on time"]

1. e4 {[%clk 0:03:00.9]} 1... e5 {[%clk 0:03:00]} 2. Nf3 {[%clk 0:02:59.8]} 2...
Nc6 {[%clk 0:03:00.4]} 3. Bb5 {[%clk 0:02:59.8]} 3... a6 {[%clk 0:03:01]} 4. Ba4
{[%clk 0:03:00.1]} 4... Nf6 {[%clk 0:03:01.6]} 5. O-O {[%clk 0:02:59.8]} 5... b5
{[%clk 0:03:02]} 6. Bb3 {[%clk 0:02:59.9]} 6... Bc5 {[%clk 0:03:02.6]} 7. c3
{[%clk 0:02:58.7]} 7... d6 {[%clk 0:03:00.5]} 8. a4 {[%clk 0:02:58.7]} 8... Rb8
{[%clk 0:02:59.6]} 9. d4 {[%clk 0:02:56.2]} 9... Bb6 {[%clk 0:02:59.8]} 10. a5
{[%clk 0:02:50.1]} 10... Ba7 {[%clk 0:02:59.3]} 11. Be3 {[%clk 0:02:47.2]} 11...
Bg4 {[%clk 0:02:43.5]} 12. dxe5 {[%clk 0:02:06.7]} 12... Bxf3 {[%clk 0:02:42]}
13. Qxf3 {[%clk 0:02:04]} 13... Nxe5 {[%clk 0:02:39.9]} 14. Qg3 {[%clk
0:02:01.8]} 14... Bxe3 {[%clk 0:02:29]} 15. Qxe3 {[%clk 0:02:02.7]} 15... O-O
{[%clk 0:02:24.2]} 16. Nd2 {[%clk 0:02:02.3]} 16... c5 {[%clk 0:02:20.4]} 17. f4
{[%clk 0:02:02]} 17... Nc6 {[%clk 0:02:20.5]} 18. Bc2 {[%clk 0:01:57.3]} 18...
Re8 {[%clk 0:02:17.5]} 19. Qg3 {[%clk 0:01:42.9]} 19... b4 {[%clk 0:02:10.2]}
20. Bd3 {[%clk 0:01:29.1]} 20... bxc3 {[%clk 0:01:53.6]} 21. bxc3 {[%clk
0:01:30]} 21... Nxa5 {[%clk 0:01:48.4]} 22. e5 {[%clk 0:01:23.8]} 22... Nh5
{[%clk 0:01:48.4]} 23. Qf3 {[%clk 0:01:20.2]} 23... g6 {[%clk 0:01:45.7]} 24. g4
{[%clk 0:01:07.2]} 24... Ng7 {[%clk 0:01:14.8]} 25. Ne4 {[%clk 0:01:05.2]} 25...
dxe5 {[%clk 0:01:11.9]} 26. fxe5 {[%clk 0:01:05.2]} 26... Rxe5 {[%clk
0:01:12.2]} 27. Qxf7+ {[%clk 0:00:56.4]} 27... Kh8 {[%clk 0:01:12.2]} 28. Rxa5
{[%clk 0:00:52.9]} 28... Re8 {[%clk 0:00:46.9]} 29. Bc4 {[%clk 0:00:06.9]} 29...
Rxe4 {[%clk 0:00:42.8]} 30. Rxa6 {[%clk 0:00:03.4]} 30... Rxg4+ {[%clk
0:00:39.9]} 31. Kh1 {[%clk 0:00:03.8]} 31... Qe8 {[%clk 0:00:32.9]} 32. Bd5
{[%clk 0:00:01.1]} 32... Qxf7 {[%clk 0:00:30.3]} 33. Bxf7 {[%clk 0:00:02]} 33...
Nh5 {[%clk 0:00:23.5]} 34. Ra7 {[%clk 0:00:01.7]} 34... Rf8 {[%clk 0:00:22.5]}
35. Bc4 {[%clk 0:00:01.7]} 35... Rgf4 {[%clk 0:00:17.7]} 36. Rxf4 {[%clk
0:00:01.8]} 36... Nxf4 {[%clk 0:00:18.6]} 37. Rc7 {[%clk 0:00:01.6]} 37... Rf5
{[%clk 0:00:19.2]} 38. Kg1 {[%clk 0:00:01.6]} 38... Nh3+ {[%clk 0:00:16.8]} 39.
Kg2 {[%clk 0:00:01.9]} 39... Ng5 {[%clk 0:00:17.4]} 40. h3 {[%clk 0:00:01.8]}
40... Ne4 {[%clk 0:00:16.6]} 41. Rc8+ {[%clk 0:00:02.2]} 41... Kg7 {[%clk
0:00:16.7]} 42. Rc7+ {[%clk 0:00:02.7]} 42... Kh6 {[%clk 0:00:16.5]} 43. h4
{[%clk 0:00:01.9]} 43... Rf2+ {[%clk 0:00:13.1]} 44. Kh3 {[%clk 0:00:01.4]}
44... Rf3+ {[%clk 0:00:13.6]} 45. Kg2 {[%clk 0:00:01.2]} 45... Rxc3 {[%clk
0:00:13.3]} 0-1